[Event "*** Titled Tuesday Blitz"]
[Site "Chess.com"]
[Date "2021.02.02"]
[Round "4"]
[White "Fortitudine"]
[Black "MPGM"]
[Result "0-1"]
[WhiteElo "2352"]
[BlackElo "2586"]
[TimeControl "180+1"]
[EndTime "10:39:18 PST"]
[Termination "MPGM won by resignation"]

1. c4 {[%clk 0:03:00.9]} 1... e6 {[%clk 0:02:57.4]} 2. Nf3 {[%clk 0:02:56.4]}
2... d5 {[%clk 0:02:56.3]} 3. g3 {[%clk 0:02:56.1]} 3... Nf6 {[%clk 0:02:54]} 4.
Bg2 {[%clk 0:02:56]} 4... c5 {[%clk 0:02:48]} 5. cxd5 {[%clk 0:02:55.8]} 5...
exd5 {[%clk 0:02:47.9]} 6. d4 {[%clk 0:02:55.7]} 6... Nc6 {[%clk 0:02:45.9]} 7.
O-O {[%clk 0:02:53.7]} 7... Be7 {[%clk 0:02:45.6]} 8. a3 {[%clk 0:02:52]} 8...
cxd4 {[%clk 0:02:40.5]} 9. Nxd4 {[%clk 0:02:51]} 9... O-O {[%clk 0:02:41.1]} 10.
Nxc6 {[%clk 0:02:49]} 10... bxc6 {[%clk 0:02:40.7]} 11. Nc3 {[%clk 0:02:36.2]}
11... Re8 {[%clk 0:02:35.6]} 12. Na4 {[%clk 0:02:28.1]} 12... Ba6 {[%clk
0:02:23]} 13. Be3 {[%clk 0:02:23.4]} 13... Bd6 {[%clk 0:02:16.6]} 14. Re1 {[%clk
0:02:20.8]} 14... Rxe3 {[%clk 0:02:14.6]} 15. fxe3 {[%clk 0:02:20.8]} 15... Ng4
{[%clk 0:02:14.5]} 16. Qd4 {[%clk 0:02:19]} 16... Qg5 {[%clk 0:02:09.9]} 17. e4
{[%clk 0:01:41.5]} 17... Bb5 {[%clk 0:01:45]} 18. Nc3 {[%clk 0:01:30.5]} 18...
c5 {[%clk 0:01:42.5]} 0-1

[Event "*** Titled Tuesday Blitz"]
[Site "Chess.com"]
[Date "2021.02.02"]
[Round "4"]
[White "onetowin"]
[Black "Witik"]
[Result "0-1"]
[WhiteElo "2014"]
[BlackElo "2759"]
[TimeControl "180+1"]
[EndTime "10:39:18 PST"]
[Termination "Witik won by resignation"]

1. d4 {[%clk 0:03:00.9]} 1... d5 {[%clk 0:02:58.4]} 2. Nf3 {[%clk 0:03:00.9]}
2... e6 {[%clk 0:02:58.4]} 3. g3 {[%clk 0:03:01]} 3... Bd6 {[%clk 0:02:58.3]} 4.
Bg2 {[%clk 0:03:01.1]} 4... f5 {[%clk 0:02:58.7]} 5. O-O {[%clk 0:03:00.3]} 5...
Nf6 {[%clk 0:02:59.4]} 6. c4 {[%clk 0:03:00.1]} 6... c6 {[%clk 0:02:59.2]} 7. b3
{[%clk 0:02:59.8]} 7... Qe7 {[%clk 0:02:59.1]} 8. Nbd2 {[%clk 0:02:43.5]} 8...
Nbd7 {[%clk 0:02:55.1]} 9. Bb2 {[%clk 0:02:41]} 9... O-O {[%clk 0:02:54.3]} 10.
Ne5 {[%clk 0:02:37.4]} 10... a5 {[%clk 0:02:51.8]} 11. Nd3 {[%clk 0:02:31.2]}
11... a4 {[%clk 0:02:41.5]} 12. c5 {[%clk 0:02:30.2]} 12... Bc7 {[%clk
0:02:40.7]} 13. bxa4 {[%clk 0:02:15.7]} 13... e5 {[%clk 0:02:36.2]} 14. e3
{[%clk 0:01:22.4]} 14... e4 {[%clk 0:02:33.9]} 15. Nf4 {[%clk 0:01:19.7]} 15...
g5 {[%clk 0:02:20.6]} 16. Nh5 {[%clk 0:01:10]} 16... Nxh5 {[%clk 0:02:20.3]} 17.
Qxh5 {[%clk 0:01:08.9]} 17... f4 {[%clk 0:02:20.6]} 18. h4 {[%clk 0:00:58.8]}
18... f3 {[%clk 0:02:14.5]} 19. Bh3 {[%clk 0:00:58]} 19... Nf6 {[%clk
0:02:09.5]} 20. Qxg5+ {[%clk 0:00:57]} 20... Kh8 {[%clk 0:02:09.7]} 21. Bxc8
{[%clk 0:00:47.7]} 21... Raxc8 {[%clk 0:02:08.9]} 22. h5 {[%clk 0:00:46.7]}
22... Rg8 {[%clk 0:02:07.1]} 23. Qh4 {[%clk 0:00:46.7]} 23... Rg4 {[%clk
0:02:05.2]} 24. Qh3 {[%clk 0:00:46.7]} 24... Rcg8 {[%clk 0:02:03.8]} 25. Kh2
{[%clk 0:00:43]} 25... Nxh5 {[%clk 0:01:58.5]} 26. Qxh5 {[%clk 0:00:38.9]} 26...
Rh4+ {[%clk 0:01:58.3]} 0-1

[Event "*** Titled Tuesday Blitz"]
[Site "Chess.com"]
[Date "2021.02.02"]
[Round "4"]
[White "Darius321"]
[Black "HackingKid98"]
[Result "0-1"]
[WhiteElo "2279"]
[BlackElo "2453"]
[TimeControl "180+1"]
[EndTime "10:39:19 PST"]
[Termination "HackingKid98 won by resignation"]

1. e4 {[%clk 0:03:00.9]} 1... c6 {[%clk 0:02:58]} 2. d4 {[%clk 0:03:00.2]} 2...
d5 {[%clk 0:02:58.9]} 3. exd5 {[%clk 0:03:00.8]} 3... cxd5 {[%clk 0:02:58.6]} 4.
c4 {[%clk 0:03:01.4]} 4... Nf6 {[%clk 0:02:59.2]} 5. Nc3 {[%clk 0:03:01.6]} 5...
g6 {[%clk 0:02:59.4]} 6. cxd5 {[%clk 0:03:01]} 6... Bg7 {[%clk 0:02:59.1]} 7.
Bb5+ {[%clk 0:03:00.5]} 7... Nbd7 {[%clk 0:02:58.1]} 8. d6 {[%clk 0:03:00]} 8...
O-O {[%clk 0:02:57.8]} 9. dxe7 {[%clk 0:02:59.5]} 9... Qxe7+ {[%clk 0:02:58.7]}
10. Nge2 {[%clk 0:02:59.5]} 10... Nb6 {[%clk 0:02:50]} 11. O-O {[%clk
0:02:57.1]} 11... Bg4 {[%clk 0:02:49.3]} 12. h3 {[%clk 0:02:49.8]} 12... Bf5
{[%clk 0:02:44.6]} 13. Re1 {[%clk 0:02:44]} 13... Rfd8 {[%clk 0:02:42.3]} 14.
Ng3 {[%clk 0:02:20.9]} 14... Be6 {[%clk 0:02:41.2]} 15. Be3 {[%clk 0:01:59.7]}
15... Nfd5 {[%clk 0:02:39.7]} 16. Qd2 {[%clk 0:01:52.1]} 16... Nxe3 {[%clk
0:02:36.2]} 17. fxe3 {[%clk 0:01:48.2]} 17... Qb4 {[%clk 0:02:36.4]} 18. Rac1
{[%clk 0:01:20.5]} 18... Rac8 {[%clk 0:02:27.8]} 19. Nge4 {[%clk 0:01:19.2]}
19... Qe7 {[%clk 0:02:22.8]} 20. Qf2 {[%clk 0:01:10.8]} 20... Bc4 {[%clk
0:02:21]} 21. Bxc4 {[%clk 0:01:05.3]} 21... Nxc4 {[%clk 0:02:21.9]} 22. b3
{[%clk 0:00:52.4]} 22... Nb6 {[%clk 0:02:14.5]} 23. Kh1 {[%clk 0:00:49.5]} 23...
Re8 {[%clk 0:02:13.1]} 24. Rf1 {[%clk 0:00:44.7]} 24... f5 {[%clk 0:02:12]} 25.
Nc5 {[%clk 0:00:41.8]} 25... Qxe3 {[%clk 0:02:11.9]} 26. Nb5 {[%clk 0:00:32.8]}
26... Qxf2 {[%clk 0:02:09]} 27. Rxf2 {[%clk 0:00:32.8]} 27... Red8 {[%clk
0:02:08.7]} 28. Nxb7 {[%clk 0:00:30]} 28... Rxc1+ {[%clk 0:02:07.6]} 29. Kh2
{[%clk 0:00:30.3]} 0-1

[Event "*** Titled Tuesday Blitz"]
[Site "Chess.com"]
[Date "2021.02.02"]
[Round "4"]
[White "HrvojeZagreb"]
[Black "Chess2Hawks"]
[Result "1-0"]
[WhiteElo "2223"]
[BlackElo "1806"]
[TimeControl "180+1"]
[EndTime "10:39:25 PST"]
[Termination "HrvojeZagreb won by resignation"]

1. d4 {[%clk 0:03:00.9]} 1... Nf6 {[%clk 0:02:58.7]} 2. Bf4 {[%clk 0:03:00.8]}
2... g6 {[%clk 0:02:55.3]} 3. Nc3 {[%clk 0:03:00.5]} 3... Bg7 {[%clk 0:02:55.1]}
4. e4 {[%clk 0:03:00.2]} 4... d6 {[%clk 0:02:47.8]} 5. Qd2 {[%clk 0:02:59.7]}
5... O-O {[%clk 0:02:44.1]} 6. O-O-O {[%clk 0:02:59.4]} 6... Nh5 {[%clk
0:02:18.7]} 7. Bh6 {[%clk 0:02:56.5]} 7... c5 {[%clk 0:02:09.7]} 8. Bxg7 {[%clk
0:02:53.4]} 8... Kxg7 {[%clk 0:02:03]} 9. dxc5 {[%clk 0:02:53.3]} 9... Qa5
{[%clk 0:01:58.5]} 10. cxd6 {[%clk 0:02:52.3]} 10... exd6 {[%clk 0:01:54.8]} 11.
Qxd6 {[%clk 0:02:52.1]} 11... Nc6 {[%clk 0:01:54.3]} 12. Qd2 {[%clk 0:02:04.6]}
12... Rd8 {[%clk 0:01:50.8]} 13. Bd3 {[%clk 0:02:03.9]} 13... Be6 {[%clk
0:01:48.9]} 14. a3 {[%clk 0:02:02.6]} 14... Nb4 {[%clk 0:01:32.6]} 15. Nd5
{[%clk 0:01:52.3]} 15... Bxd5 {[%clk 0:01:21.7]} 16. Qxb4 {[%clk 0:01:47.8]}
16... Qxb4 {[%clk 0:01:18.7]} 17. axb4 {[%clk 0:01:48.7]} 17... Bc6 {[%clk
0:01:14.9]} 18. Ne2 {[%clk 0:01:34.4]} 18... Rac8 {[%clk 0:01:04.2]} 19. Kb1
{[%clk 0:01:29.9]} 19... Rd7 {[%clk 0:00:57.2]} 20. b5 {[%clk 0:01:25.9]} 1-0

[Event "*** Titled Tuesday Blitz"]
[Site "Chess.com"]
[Date "2021.02.02"]
[Round "4"]
[White "Godzillator"]
[Black "AungTZ"]
[Result "1-0"]
[WhiteElo "2315"]
[BlackElo "1999"]
[TimeControl "180+1"]
[EndTime "10:39:27 PST"]
[Termination "Godzillator won by resignation"]

1. d4 {[%clk 0:03:00.9]} 1... Nf6 {[%clk 0:02:38.6]} 2. c4 {[%clk 0:03:01]} 2...
e6 {[%clk 0:02:38.2]} 3. Nc3 {[%clk 0:03:01.3]} 3... Bb4 {[%clk 0:02:33]} 4. Qc2
{[%clk 0:03:01.5]} 4... c5 {[%clk 0:02:31.6]} 5. dxc5 {[%clk 0:03:01.2]} 5...
Na6 {[%clk 0:02:31.1]} 6. a3 {[%clk 0:03:01.5]} 6... Bxc3+ {[%clk 0:02:29.6]} 7.
Qxc3 {[%clk 0:03:02.4]} 7... Nxc5 {[%clk 0:02:29.6]} 8. f3 {[%clk 0:03:03.1]}
8... a5 {[%clk 0:02:22.2]} 9. e4 {[%clk 0:02:59.5]} 9... a4 {[%clk 0:02:21.1]}
10. Be3 {[%clk 0:02:58.9]} 10... Nb3 {[%clk 0:02:17.3]} 11. Rd1 {[%clk
0:02:58.1]} 11... O-O {[%clk 0:02:16.3]} 12. Bd3 {[%clk 0:02:56.5]} 12... d5
{[%clk 0:02:13.4]} 13. cxd5 {[%clk 0:02:54.2]} 13... exd5 {[%clk 0:02:12.8]} 14.
Bc2 {[%clk 0:02:51.7]} 14... Qe7 {[%clk 0:01:54.9]} 15. Bxb3 {[%clk 0:02:47.9]}
15... axb3 {[%clk 0:01:52.9]} 16. Bc5 {[%clk 0:02:47.6]} 16... Qe6 {[%clk
0:01:47.5]} 17. Bxf8 {[%clk 0:02:47.4]} 17... Kxf8 {[%clk 0:01:45.7]} 18. e5
{[%clk 0:02:40.6]} 18... Nd7 {[%clk 0:01:41.1]} 19. f4 {[%clk 0:02:40.4]} 19...
b6 {[%clk 0:01:38.7]} 20. Nf3 {[%clk 0:02:40.1]} 20... Ba6 {[%clk 0:01:38.3]}
21. Qd4 {[%clk 0:02:27.9]} 21... Qg4 {[%clk 0:01:11.2]} 22. Kf2 {[%clk
0:02:18.8]} 22... Nc5 {[%clk 0:00:59.9]} 23. Qxd5 {[%clk 0:02:18]} 23... g6
{[%clk 0:00:55.7]} 24. Rhe1 {[%clk 0:02:15.9]} 24... Qxf4 {[%clk 0:00:54.7]} 25.
Qd6+ {[%clk 0:02:14.9]} 25... Kg8 {[%clk 0:00:53]} 26. Qxb6 {[%clk 0:02:12.2]}
26... Ne4+ {[%clk 0:00:50.7]} 27. Kg1 {[%clk 0:02:10.5]} 27... Bc4 {[%clk
0:00:37.3]} 28. Rd4 {[%clk 0:02:04.9]} 1-0

[Event "*** Titled Tuesday Blitz"]
[Site "Chess.com"]
[Date "2021.02.02"]
[Round "4"]
[White "AliKa2810"]
[Black "MF1966Idrisov"]
[Result "0-1"]
[WhiteElo "2583"]
[BlackElo "2405"]
[TimeControl "180+1"]
[EndTime "10:39:32 PST"]
[Termination "MF1966Idrisov won by resignation"]

1. c4 {[%clk 0:03:00.9]} 1... c6 {[%clk 0:02:59.1]} 2. d4 {[%clk 0:03:00.5]}
2... d5 {[%clk 0:02:59.2]} 3. cxd5 {[%clk 0:03:01.1]} 3... cxd5 {[%clk
0:02:58.6]} 4. Bg5 {[%clk 0:03:01.7]} 4... Nc6 {[%clk 0:02:57.8]} 5. Nc3 {[%clk
0:03:01.3]} 5... h6 {[%clk 0:02:50.7]} 6. Bh4 {[%clk 0:03:00.9]} 6... g5 {[%clk
0:02:50.9]} 7. Bg3 {[%clk 0:03:01.4]} 7... Bg7 {[%clk 0:02:51]} 8. e3 {[%clk
0:03:02]} 8... Nf6 {[%clk 0:02:49.8]} 9. Bd3 {[%clk 0:03:02]} 9... O-O {[%clk
0:02:40.3]} 10. Nge2 {[%clk 0:02:58.2]} 10... Nb4 {[%clk 0:02:37.8]} 11. Bb1
{[%clk 0:02:56.6]} 11... b6 {[%clk 0:02:33.4]} 12. O-O {[%clk 0:02:54.4]} 12...
Qd7 {[%clk 0:02:27.7]} 13. a3 {[%clk 0:02:47]} 13... Nc6 {[%clk 0:02:27]} 14. b4
{[%clk 0:02:47.5]} 14... a5 {[%clk 0:02:25]} 15. b5 {[%clk 0:02:45.9]} 15... Nd8
{[%clk 0:02:22.3]} 16. Qd3 {[%clk 0:02:37.4]} 16... Re8 {[%clk 0:02:16.3]} 17.
Be5 {[%clk 0:02:36.5]} 17... Ne6 {[%clk 0:02:09.3]} 18. Bxf6 {[%clk 0:02:24.8]}
18... exf6 {[%clk 0:02:08.2]} 19. Qh7+ {[%clk 0:02:24.5]} 19... Kf8 {[%clk
0:02:07.1]} 20. Ng3 {[%clk 0:02:22.5]} 20... Bb7 {[%clk 0:01:41.3]} 21. Nf5
{[%clk 0:02:20.8]} 21... Rec8 {[%clk 0:01:36.8]} 22. Ne2 {[%clk 0:02:08.4]}
22... Qxb5 {[%clk 0:01:24.3]} 23. Neg3 {[%clk 0:02:08.1]} 23... Qb2 {[%clk
0:01:18.7]} 24. Ra2 {[%clk 0:02:07.5]} 24... Qc1 {[%clk 0:01:16.5]} 25. Nxg7
{[%clk 0:02:00.6]} 25... Nxg7 {[%clk 0:01:13.9]} 26. Qh8+ {[%clk 0:01:49.3]}
26... Ke7 {[%clk 0:01:13.4]} 27. Qxg7 {[%clk 0:01:49.9]} 27... Ba6 {[%clk
0:01:09.9]} 28. Ne2 {[%clk 0:01:19.6]} 28... Qxf1+ {[%clk 0:01:07.8]} 0-1

[Event "*** Titled Tuesday Blitz"]
[Site "Chess.com"]
[Date "2021.02.02"]
[Round "4"]
[White "joshdaruca"]
[Black "FedaMaster"]
[Result "0-1"]
[WhiteElo "2721"]
[BlackElo "2549"]
[TimeControl "180+1"]
[EndTime "10:39:33 PST"]
[Termination "FedaMaster won by resignation"]

1. b3 {[%clk 0:02:59.6]} 1... f5 {[%clk 0:02:58.3]} 2. Bb2 {[%clk 0:02:59]} 2...
Nf6 {[%clk 0:02:58.9]} 3. c4 {[%clk 0:02:59.2]} 3... d6 {[%clk 0:02:53.6]} 4.
Nf3 {[%clk 0:02:59.5]} 4... e5 {[%clk 0:02:49]} 5. d4 {[%clk 0:02:59.8]} 5... e4
{[%clk 0:02:49.1]} 6. Ng1 {[%clk 0:02:55.6]} 6... e3 {[%clk 0:02:41.9]} 7. fxe3
{[%clk 0:02:55.3]} 7... Qe7 {[%clk 0:02:37.5]} 8. Qd3 {[%clk 0:02:51.1]} 8...
Ng4 {[%clk 0:02:32]} 9. Bc1 {[%clk 0:02:49.5]} 9... Nc6 {[%clk 0:02:31.3]} 10.
Nf3 {[%clk 0:02:43.5]} 10... g6 {[%clk 0:02:23.3]} 11. Na3 {[%clk 0:02:41.1]}
11... Nb4 {[%clk 0:02:16.8]} 12. Qc3 {[%clk 0:02:40.4]} 12... a5 {[%clk
0:02:13.7]} 13. h3 {[%clk 0:02:15.3]} 13... Nf6 {[%clk 0:02:13.7]} 14. d5 {[%clk
0:02:08.3]} 14... Bg7 {[%clk 0:02:09.1]} 15. Nd4 {[%clk 0:02:08.3]} 15... Ne4
{[%clk 0:02:08.1]} 16. Qb2 {[%clk 0:01:42.3]} 16... Qh4+ {[%clk 0:02:02]} 17.
Kd1 {[%clk 0:01:41.6]} 17... Nf2+ {[%clk 0:02:02.5]} 18. Kd2 {[%clk 0:01:40.5]}
18... Ne4+ {[%clk 0:01:59.2]} 19. Kd1 {[%clk 0:01:38.2]} 19... Nf2+ {[%clk
0:01:59.2]} 20. Kd2 {[%clk 0:01:38.4]} 20... Nxh1 {[%clk 0:01:59]} 21. g3 {[%clk
0:01:36.3]} 21... Qxg3 {[%clk 0:01:38]} 22. Nac2 {[%clk 0:01:31.7]} 22... Nxc2
{[%clk 0:01:31.4]} 23. Kxc2 {[%clk 0:01:28.7]} 23... Nf2 {[%clk 0:01:24]} 24.
Bd2 {[%clk 0:01:29]} 24... Ne4 {[%clk 0:01:23.8]} 25. Rd1 {[%clk 0:01:27.5]}
25... Nxd2 {[%clk 0:01:23.1]} 26. Kxd2 {[%clk 0:01:24.9]} 26... f4 {[%clk
0:01:14]} 27. Qc3 {[%clk 0:01:12.3]} 27... Qxe3+ {[%clk 0:01:11.6]} 28. Qxe3+
{[%clk 0:01:12.4]} 28... fxe3+ {[%clk 0:01:12.5]} 29. Kxe3 {[%clk 0:01:13.3]}
29... Bxd4+ {[%clk 0:01:12.2]} 30. Kxd4 {[%clk 0:01:13.3]} 30... O-O {[%clk
0:01:12.6]} 0-1

[Event "*** Titled Tuesday Blitz"]
[Site "Chess.com"]
[Date "2021.02.02"]
[Round "4"]
[White "ChristopherYoo"]
[Black "eldur16"]
[Result "1-0"]
[WhiteElo "2860"]
[BlackElo "2527"]
[TimeControl "180+1"]
[EndTime "10:39:38 PST"]
[Termination "ChristopherYoo won by resignation"]

1. d4 {[%clk 0:03:00.9]} 1... d6 {[%clk 0:02:59.2]} 2. Nf3 {[%clk 0:03:00.7]}
2... Bg4 {[%clk 0:02:58.4]} 3. Nbd2 {[%clk 0:02:55.2]} 3... Nd7 {[%clk
0:02:57.7]} 4. e3 {[%clk 0:02:54.8]} 4... c5 {[%clk 0:02:56.6]} 5. Be2 {[%clk
0:02:54.2]} 5... Ngf6 {[%clk 0:02:55.8]} 6. O-O {[%clk 0:02:54]} 6... e6 {[%clk
0:02:54.6]} 7. b3 {[%clk 0:02:52.4]} 7... Be7 {[%clk 0:02:54]} 8. Bb2 {[%clk
0:02:52.3]} 8... O-O {[%clk 0:02:53.8]} 9. c4 {[%clk 0:02:51.8]} 9... Qc7 {[%clk
0:02:52]} 10. h3 {[%clk 0:02:50.7]} 10... Bh5 {[%clk 0:02:51.4]} 11. a3 {[%clk
0:02:49]} 11... a6 {[%clk 0:02:49.6]} 12. dxc5 {[%clk 0:02:47.9]} 12... Nxc5
{[%clk 0:02:48.3]} 13. b4 {[%clk 0:02:47.7]} 13... Ncd7 {[%clk 0:02:45.8]} 14.
Rc1 {[%clk 0:02:47.2]} 14... Rac8 {[%clk 0:02:43.7]} 15. Qb3 {[%clk 0:02:44.2]}
15... Rfd8 {[%clk 0:02:37.8]} 16. Rfd1 {[%clk 0:02:43]} 16... Qb8 {[%clk
0:02:34]} 17. Bd4 {[%clk 0:02:28.9]} 17... b5 {[%clk 0:02:27]} 18. cxb5 {[%clk
0:02:19]} 18... axb5 {[%clk 0:02:26.8]} 19. Qd3 {[%clk 0:02:19.2]} 19... e5
{[%clk 0:02:20.3]} 20. Bb2 {[%clk 0:02:18.5]} 20... Qa8 {[%clk 0:01:34.3]} 21.
Qxb5 {[%clk 0:02:14.7]} 21... Rb8 {[%clk 0:01:33]} 22. Qc6 {[%clk 0:01:59.5]}
22... Qa7 {[%clk 0:01:23.2]} 23. Qa6 {[%clk 0:01:53.1]} 23... Qxa6 {[%clk
0:01:20.2]} 24. Bxa6 {[%clk 0:01:54]} 24... e4 {[%clk 0:01:20.3]} 25. g4 {[%clk
0:01:48.8]} 25... Bxg4 {[%clk 0:01:18.8]} 26. hxg4 {[%clk 0:01:47.7]} 26... exf3
{[%clk 0:01:19]} 27. g5 {[%clk 0:01:45.8]} 27... Ne8 {[%clk 0:01:00.8]} 28. Nxf3
{[%clk 0:01:45.2]} 28... Nb6 {[%clk 0:00:57.8]} 29. Bb5 {[%clk 0:01:44]} 29...
Ra8 {[%clk 0:00:50.9]} 30. Bd4 {[%clk 0:01:40.6]} 30... Nd5 {[%clk 0:00:40.2]}
31. Bc6 {[%clk 0:01:38.4]} 1-0

[Event "*** Titled Tuesday Blitz"]
[Site "Chess.com"]
[Date "2021.02.02"]
[Round "4"]
[White "Piacramling"]
[Black "WilliamSchill"]
[Result "1-0"]
[WhiteElo "2242"]
[BlackElo "1965"]
[TimeControl "180+1"]
[EndTime "10:39:40 PST"]
[Termination "Piacramling won on time"]

1. c4 {[%clk 0:02:59.7]} 1... Nf6 {[%clk 0:02:56.3]} 2. d4 {[%clk 0:02:56]} 2...
g6 {[%clk 0:02:56.1]} 3. Nc3 {[%clk 0:02:55.2]} 3... Bg7 {[%clk 0:02:56.3]} 4.
e4 {[%clk 0:02:54.5]} 4... d6 {[%clk 0:02:56.6]} 5. h3 {[%clk 0:02:54.5]} 5...
O-O {[%clk 0:02:54.9]} 6. Be3 {[%clk 0:02:54.7]} 6... e5 {[%clk 0:02:41.5]} 7.
d5 {[%clk 0:02:54]} 7... a5 {[%clk 0:02:41.6]} 8. g4 {[%clk 0:02:50.6]} 8... Na6
{[%clk 0:02:41.1]} 9. Nf3 {[%clk 0:02:50]} 9... Nd7 {[%clk 0:02:31.9]} 10. Rg1
{[%clk 0:02:44.9]} 10... Ndc5 {[%clk 0:02:31.2]} 11. Qd2 {[%clk 0:02:36]} 11...
Bd7 {[%clk 0:02:20.7]} 12. h4 {[%clk 0:02:34.3]} 12... Qe7 {[%clk 0:01:56.6]}
13. Be2 {[%clk 0:02:31.3]} 13... a4 {[%clk 0:01:37.5]} 14. O-O-O {[%clk
0:02:26.1]} 14... a3 {[%clk 0:01:28.1]} 15. b3 {[%clk 0:02:23.9]} 15... Rfb8
{[%clk 0:01:06.6]} 16. h5 {[%clk 0:02:22]} 16... Nb4 {[%clk 0:00:52.9]} 17. g5
{[%clk 0:02:08.5]} 17... c6 {[%clk 0:00:16.4]} 18. Nh2 {[%clk 0:01:52.5]} 18...
cxd5 {[%clk 0:00:14.6]} 19. cxd5 {[%clk 0:01:48.1]} 19... Rc8 {[%clk 0:00:07.1]}
20. Kb1 {[%clk 0:01:47.8]} 1-0

[Event "*** Titled Tuesday Blitz"]
[Site "Chess.com"]
[Date "2021.02.02"]
[Round "4"]
[White "JQuiroga18"]
[Black "ChessQueen"]
[Result "0-1"]
[WhiteElo "2440"]
[BlackElo "2714"]
[TimeControl "180+1"]
[EndTime "10:39:41 PST"]
[Termination "ChessQueen won by resignation"]

1. e4 {[%clk 0:03:00.9]} 1... c6 {[%clk 0:02:59.6]} 2. d4 {[%clk 0:02:58.1]}
2... d5 {[%clk 0:02:59.8]} 3. Nc3 {[%clk 0:02:57.1]} 3... dxe4 {[%clk
0:02:59.7]} 4. Nxe4 {[%clk 0:02:57]} 4... Nf6 {[%clk 0:03:00.6]} 5. Nxf6+ {[%clk
0:02:53.7]} 5... exf6 {[%clk 0:03:01.5]} 6. Nf3 {[%clk 0:02:53.8]} 6... Bd6
{[%clk 0:03:01.5]} 7. Bd3 {[%clk 0:02:53.6]} 7... O-O {[%clk 0:03:01.7]} 8. O-O
{[%clk 0:02:53.8]} 8... Bg4 {[%clk 0:02:57.1]} 9. h3 {[%clk 0:02:53.1]} 9... Bh5
{[%clk 0:02:57.3]} 10. Re1 {[%clk 0:02:08.7]} 10... Nd7 {[%clk 0:02:55.6]} 11.
g4 {[%clk 0:02:05.9]} 11... Bg6 {[%clk 0:02:55.4]} 12. Nh4 {[%clk 0:02:06]}
12... Bxd3 {[%clk 0:02:42.5]} 13. Qxd3 {[%clk 0:02:06.9]} 13... g6 {[%clk
0:02:43]} 14. Bh6 {[%clk 0:02:01]} 14... Re8 {[%clk 0:02:43.1]} 15. Kg2 {[%clk
0:01:59.1]} 15... Qc7 {[%clk 0:02:36.7]} 16. Bd2 {[%clk 0:01:48.6]} 16... Bf4
{[%clk 0:02:28.1]} 17. Nf3 {[%clk 0:01:43.4]} 17... Nf8 {[%clk 0:02:23.5]} 18.
c4 {[%clk 0:01:32.6]} 18... Ne6 {[%clk 0:02:04.4]} 19. d5 {[%clk 0:01:16.4]}
19... Bxd2 {[%clk 0:02:04.2]} 20. dxe6 {[%clk 0:01:15.1]} 20... Bxe1 {[%clk
0:02:02.9]} 21. exf7+ {[%clk 0:01:14.7]} 21... Qxf7 {[%clk 0:02:01]} 22. Nxe1
{[%clk 0:01:13.8]} 22... Rad8 {[%clk 0:02:00.3]} 23. Qb3 {[%clk 0:01:13.3]}
23... Rd7 {[%clk 0:01:52]} 24. Nf3 {[%clk 0:01:09.1]} 24... Re4 {[%clk
0:01:50.3]} 25. Rc1 {[%clk 0:01:06.7]} 25... Qe6 {[%clk 0:01:47]} 26. Qa3 {[%clk
0:00:51.5]} 26... a6 {[%clk 0:01:42.3]} 27. b3 {[%clk 0:00:50.1]} 27... Re2
{[%clk 0:01:40]} 28. Qc5 {[%clk 0:00:39.4]} 28... Qe4 {[%clk 0:01:39.1]} 0-1

[Event "*** Titled Tuesday Blitz"]
[Site "Chess.com"]
[Date "2021.02.02"]
[Round "4"]
[White "SaqoChess_Twitch"]
[Black "sergiochess83"]
[Result "0-1"]
[WhiteElo "2460"]
[BlackElo "2845"]
[TimeControl "180+1"]
[EndTime "10:39:44 PST"]
[Termination "sergiochess83 won by resignation"]

1. d4 {[%clk 0:02:54.3]} 1... Nf6 {[%clk 0:02:59.2]} 2. c4 {[%clk 0:02:54.9]}
2... g6 {[%clk 0:02:59]} 3. Nc3 {[%clk 0:02:55.4]} 3... d5 {[%clk 0:02:59.2]} 4.
Nf3 {[%clk 0:02:56.1]} 4... Bg7 {[%clk 0:02:59.2]} 5. Bf4 {[%clk 0:02:56.3]}
5... O-O {[%clk 0:02:56.8]} 6. e3 {[%clk 0:02:56.9]} 6... c5 {[%clk 0:02:57.1]}
7. dxc5 {[%clk 0:02:55.9]} 7... Qa5 {[%clk 0:02:57]} 8. cxd5 {[%clk 0:02:55.7]}
8... Ne4 {[%clk 0:02:55.8]} 9. Be5 {[%clk 0:02:53.7]} 9... Nxc3 {[%clk
0:02:44.6]} 10. Qd2 {[%clk 0:02:51.1]} 10... Bxe5 {[%clk 0:02:30.6]} 11. Nxe5
{[%clk 0:02:49.7]} 11... Qxc5 {[%clk 0:02:31.2]} 12. Qxc3 {[%clk 0:02:38.7]}
12... Qxd5 {[%clk 0:02:26.7]} 13. Bc4 {[%clk 0:02:38.7]} 13... Qxg2 {[%clk
0:02:24.3]} 14. O-O-O {[%clk 0:02:37.7]} 14... Nc6 {[%clk 0:02:08.9]} 15. Rhg1
{[%clk 0:02:16.9]} 15... Qe4 {[%clk 0:01:54.3]} 16. Nxg6 {[%clk 0:01:52]} 16...
hxg6 {[%clk 0:01:52.1]} 17. f3 {[%clk 0:01:51.6]} 17... Qf5 {[%clk 0:01:38]} 18.
Rd5 {[%clk 0:01:48.5]} 18... e5 {[%clk 0:01:38.1]} 19. Rd6 {[%clk 0:01:44.7]}
19... Kg7 {[%clk 0:01:34.5]} 20. e4 {[%clk 0:01:35]} 20... Qf4+ {[%clk
0:01:30.9]} 21. Kb1 {[%clk 0:01:35.3]} 21... Rd8 {[%clk 0:01:22.3]} 22. Rxd8
{[%clk 0:01:14.2]} 22... Nxd8 {[%clk 0:01:21.9]} 23. Qd3 {[%clk 0:01:15.1]}
23... Be6 {[%clk 0:01:20.1]} 24. Bb5 {[%clk 0:01:13.6]} 24... Nc6 {[%clk
0:01:16.9]} 25. Bc4 {[%clk 0:01:00.7]} 25... Rd8 {[%clk 0:01:11.2]} 26. Qb3
{[%clk 0:01:00.1]} 26... Na5 {[%clk 0:01:07.6]} 0-1